bitfinex/quotes_BTCUSD_20260310
["timestamp","ask_amount","ask_price","bid_price","bid_amount"]
[1773124625398,0.08,70011.0,69998.0,0.03668927]
[1773124625573,0.04051646,70011.0,69999.0,0.00144]
[1773124625773,0.03,70008.0,69999.0,0.00144]
[1773124625992,0.07141546,70013.0,69999.0,0.00144]
[1773124625993,0.03,70002.0,69999.0,0.00144]
[1773124626190,0.04397788,70002.0,69999.0,0.00144]
[1773124626451,0.04397788,70002.0,69998.0,0.00144]
[1773124626596,0.03,70002.0,69998.0,0.00144]
[1773124627120,0.03,70005.0,69998.0,0.00144]
[1773124627272,0.03,70001.0,69998.0,0.00144]
[1773124627469,0.03,69999.0,69998.0,0.07287061]
[1773124628312,0.03,69999.0,69998.0,0.07143061]
[1773124629539,0.04397788,70001.0,69997.0,0.07143156]
[1773124629739,0.03,70001.0,69998.0,0.001]
[1773124630275,0.01397788,70005.0,69998.0,0.002]
[1773124630499,0.00144,70008.0,69997.0,0.07143156]
[1773124630856,0.00144,70008.0,69998.0,0.05444551]
[1773124631392,0.03,70009.0,69998.0,0.05444551]
[1773124631542,0.03,70008.0,69998.0,0.05444551]
[1773124631993,0.03,70008.0,69999.0,0.07142959]
[1773124632296,0.00022001,70006.0,69999.0,0.07142959]
[1773124632460,0.00022001,70006.0,69999.0,0.07286959]
[1773124633753,0.00022001,70006.0,69999.0,0.07386959]
[1773124633951,0.04723901,70012.0,69999.0,0.07386959]
[1773124633952,0.07141347,70015.0,69999.0,0.07286959]
[1773124634149,0.0730686,70020.0,70005.0,0.03668927]
[1773124634380,0.0716286,70020.0,70010.0,0.05444551]
[1773124634784,0.03,70018.0,70010.0,0.05444551]
[1773124636261,0.03,70017.0,70011.0,0.07141734]
[1773124636573,0.07723903,70017.0,70011.0,0.07141734]
[1773124637463,0.00022001,70020.0,70011.0,0.07141734]
[1773124637671,0.07140267,70026.0,70012.0,0.03812927]
[1773124637874,0.07163313,70025.0,70012.0,0.00144]
[1773124638058,0.00023,70025.0,70012.0,0.00144]
[1773124638238,0.00023,70025.0,70013.0,0.0714153]
[1773124639636,0.07723903,70024.0,70013.0,0.0714153]
[1773124640394,0.03,70024.0,70013.0,0.0714153]
[1773124640665,0.03,70014.0,70002.0,0.07142612]
[1773124640868,0.03,70012.0,70003.0,0.00144]
[1773124641364,0.03,70012.0,70002.0,0.07142612]
[1773124641580,0.04723903,70011.0,69999.0,0.07142904]
[1773124641770,0.07723903,70008.0,70000.0,0.00144]
[1773124644548,0.07142018,70009.0,70001.0,0.07142755]
[1773124644549,0.03,70009.0,70001.0,0.07142755]
[1773124645337,0.11193015,70015.0,70001.0,0.07142755]
[1773124645338,0.07163132,70017.0,70001.0,0.07142755]
[1773124645657,0.00144,70023.0,70001.0,0.07142755]
[1773124645859,0.09518,70026.0,70002.0,0.03668927]
[1773124645860,0.07140418,70024.0,70002.0,0.03668927]
[1773124646071,0.00144,70023.0,70002.0,0.03668927]
[1773124646212,0.02521701,70023.0,70002.0,0.03668927]
[1773124646815,0.10140699,70022.0,70003.0,0.07142551]
[1773124647045,0.10140699,70022.0,70004.0,0.03668927]
[1773124648122,0.03,70022.0,70004.0,0.03668927]
[1773124648751,0.03,70019.0,70005.0,0.07142346]
[1773124648955,0.03,70019.0,70006.0,0.03812927]
[1773124650044,0.03,70018.0,70006.0,0.03812927]
[1773124651045,0.03,70020.0,70007.0,0.07142142]
[1773124654700,0.03,70019.0,70007.0,0.07142142]
[1773124654899,0.03,70019.0,70008.0,0.03856407]
[1773124655844,0.03,70018.0,70009.0,0.07141938]
[1773124656101,0.00022001,70022.0,70009.0,0.07141938]
[1773124657805,0.03,70018.0,70009.0,0.07141938]
[1773124657954,0.03,70018.0,70009.0,0.07241938]
[1773124658158,0.03,70018.0,70009.0,0.07141938]
[1773124658484,0.00022001,70022.0,70009.0,0.07141938]
[1773124659001,0.00022001,70022.0,70009.0,0.07241938]
[1773124659241,0.00022001,70022.0,70009.0,0.07141938]
[1773124660189,0.00022001,70020.0,70009.0,0.07141938]
[1773124660818,0.03,70016.0,70007.0,0.07142142]
[1773124661072,0.03,70016.0,70002.0,0.07142632]
[1773124661073,0.05592911,70008.0,70002.0,0.07142653]
[1773124661255,0.03,70006.0,70002.0,0.07142653]
[1773124661450,0.05592911,70006.0,70003.0,0.00144]
[1773124661648,0.00166001,70020.0,70003.0,0.00144]
[1773124661649,0.02758912,70020.0,70009.0,0.001]
[1773124662029,0.02592911,70019.0,70004.0,0.07142449]
[1773124662226,0.03,70018.0,70004.0,0.07142449]
[1773124664038,0.12733883,70019.0,70004.0,0.07142449]
[1773124664445,0.10140972,70019.0,70004.0,0.07142449]
[1773124664688,0.03,70017.0,70004.0,0.07142449]
[1773124665395,0.05603245,70017.0,70004.0,0.07142449]
[1773124665599,0.03,70011.0,70003.0,0.07142449]
[1773124665742,0.03,70009.0,69997.0,0.07143163]
[1773124666095,0.05603245,70003.0,69994.0,0.07143163]
[1773124666288,0.03,70001.0,69998.0,0.00144]
[1773124666735,0.03,70001.0,69999.0,0.00144]
[1773124666915,0.02603245,70002.0,70000.0,0.00144]
[1773124668157,0.03,70005.0,70001.0,0.07142755]
[1773124668438,0.11411216,70030.0,70001.0,0.07142755]
[1773124668439,0.07141246,70016.0,70001.0,0.07142755]
[1773124668767,0.07141395,70015.0,70001.0,0.07142755]
[1773124669087,0.01301622,70013.0,70001.0,0.07142755]
[1773124669547,0.03,70012.0,70001.0,0.07142755]
[1773124670366,0.03,70011.0,70001.0,0.07142755]
[1773124671164,0.03,70009.0,70001.0,0.07142755]
[1773124671413,0.04311956,70007.0,70002.0,0.00144]
[1773124671590,0.03635766,70012.0,70002.0,0.00144]
[1773124671804,0.00655978,70011.0,70002.0,0.00144]
[1773124672448,0.03655978,70011.0,70003.0,0.07142551]
[1773124675189,0.00799978,70019.0,70003.0,0.07142551]
[1773124675330,0.07940939,70019.0,70009.0,0.05443426]
[1773124675724,0.04291744,70024.0,70009.0,0.05443426]
[1773124675900,0.22065778,70029.0,70012.0,0.05443426]
[1773124676095,0.03022001,70028.0,70015.0,0.05443426]
[1773124676307,0.10162002,70028.0,70016.0,0.00144]
[1773124677404,0.00022001,70020.0,70017.0,0.07141122]
[1773124677586,0.03,70027.0,70017.0,0.07141122]
[1773124678568,0.03,70026.0,70017.0,0.07141122]
[1773124678775,0.03,70026.0,70017.0,0.07241122]
[1773124679283,0.03,70026.0,70017.0,0.07141122]
[1773124679624,0.00022001,70028.0,70017.0,0.07141122]
[1773124680328,0.03,70031.0,70017.0,0.10936683]
[1773124680488,0.03,70031.0,70021.0,0.05443426]
[1773124680692,0.00022001,70032.0,70022.0,0.00144]
[1773124681230,0.0002285,70033.0,70022.0,0.03939561]
[1773124681412,0.0002285,70033.0,70023.0,0.0714051]
[1773124682201,0.0002285,70033.0,70024.0,0.03795561]
[1773124682804,0.0002285,70033.0,70023.0,0.0714051]
[1773124684355,0.0002285,70033.0,70023.0,0.0724051]
[1773124684714,0.0002285,70033.0,70023.0,0.0714051]
[1773124685125,0.0002285,70033.0,70023.0,0.0724051]
[1773124685326,0.0002285,70033.0,70023.0,0.0714051]
[1773124685742,0.00044851,70033.0,70023.0,0.0724051]
[1773124687672,0.00044851,70033.0,70023.0,0.0714051]
[1773124687981,0.00869024,70048.0,70024.0,0.03528663]
[1773124688194,0.00869024,70048.0,70030.0,0.19845208]
[1773124688573,0.00869024,70048.0,70031.0,0.00144]
[1773124688574,0.00894124,70047.0,70031.0,0.00144]
[1773124689793,0.00894124,70047.0,70032.0,0.07139593]
[1773124690802,0.00047101,70047.0,70033.0,0.005]
[1773124691014,0.00147101,70047.0,70033.0,0.005]
[1773124691214,0.00047101,70047.0,70033.0,0.005]
[1773124692119,0.00047101,70047.0,70035.0,0.005]
[1773124694384,0.00022001,70047.0,70036.0,0.07139185]
[1773124694595,0.00034231,70047.0,70037.0,0.00644]
[1773124695628,0.00034231,70047.0,70037.0,0.00144]
[1773124695810,0.00034231,70047.0,70038.0,0.005]
[1773124697898,0.00034231,70047.0,70039.0,0.07138879]
[1773124698116,0.00034231,70047.0,70040.0,0.00144]
[1773124699033,0.00034231,70047.0,70041.0,0.00144]
[1773124699537,0.03,70045.0,70028.0,0.07140001]
[1773124699740,0.03,70041.0,70029.0,0.00144]
[1773124699888,0.03,70041.0,70030.0,0.07139797]
[1773124700423,0.03,70041.0,70031.0,0.00144]
[1773124700618,0.0301223,70041.0,70031.0,0.00144]
[1773124701534,0.0301223,70041.0,70031.0,0.00644]
[1773124702718,0.03565372,70042.0,70032.0,0.07139593]
[1773124702889,0.03022001,70047.0,70033.0,0.005]
[1773124703294,0.03022001,70047.0,70035.0,0.005]
[1773124703494,0.03022001,70047.0,70036.0,0.005]
[1773124703797,0.03,70046.0,70037.0,0.06080877]
[1773124704155,0.03,70046.0,70038.0,0.005]
[1773124704772,0.00022001,70047.0,70039.0,0.07138879]
[1773124705931,0.00022001,70047.0,70040.0,0.005]
[1773124706151,0.00022001,70046.0,70040.0,0.005]
[1773124707552,0.00022001,70046.0,70039.0,0.07138879]
[1773124708559,1e-08,70055.0,70041.0,0.005]
[1773124708760,1e-08,70055.0,70045.0,0.05936877]
[1773124709055,1e-08,70055.0,70046.0,0.00144]
[1773124709858,1e-08,70055.0,70047.0,0.07138064]
[1773124716165,1e-08,70055.0,70047.0,0.07123326]
[1773124718463,0.03,70051.0,70042.0,0.07138532]
[1773124718667,0.03,70051.0,70043.0,0.00144]
[1773124719428,0.03,70051.0,70042.0,0.07282532]
[1773124719877,0.03,70051.0,70042.0,0.07138532]
[1773124720077,0.03,70051.0,70042.0,0.07282532]
[1773124720895,0.03,70050.0,70042.0,0.07282532]
[1773124721327,0.03,70048.0,70041.0,0.05413775]
[1773124722465,0.03,70047.0,70041.0,0.05413775]
[1773124723344,0.03,70048.0,70041.0,0.00144]
[1773124724246,0.03,70048.0,70040.0,0.07138717]
[1773124724455,0.03,70048.0,70042.0,0.07138573]
[1773124724959,0.031,70048.0,70042.0,0.07138573]
[1773124725209,0.03,70048.0,70042.0,0.07138573]
[1773124725591,0.03,70048.0,70040.0,0.07138717]
[1773124725746,0.03,70048.0,70041.0,0.00144]
[1773124725961,0.03,70048.0,70040.0,0.07138717]
[1773124726300,0.03,70048.0,70041.0,0.00144]
[1773124726636,0.03,70048.0,70042.0,0.07138573]
[1773124727586,0.031,70048.0,70042.0,0.07123837]
[1773124728018,0.031,70048.0,70040.0,0.07138717]
[1773124728189,0.03,70048.0,70041.0,0.00144]
[1773124728998,0.03,70048.0,70040.0,0.07138717]
[1773124729220,0.03,70048.0,70042.0,0.07138573]
[1773124729987,0.03,70047.0,70042.0,0.07158573]
[1773124730995,0.03,70046.0,70042.0,0.07158573]
[1773124731366,0.00226699,70050.0,70042.0,0.07158573]
[1773124731568,0.07137465,70053.0,70042.0,0.07158573]
[1773124731773,0.00039031,70059.0,70042.0,0.07158573]
[1773124731774,0.00039031,70059.0,70043.0,0.05580877]
[1773124732005,0.00039031,70059.0,70050.0,0.01702388]
[1773124732140,0.00039031,70059.0,70050.0,0.01846388]
[1773124732345,0.03022001,70061.0,70051.0,0.03792093]
[1773124732556,0.03022001,70061.0,70050.0,0.00144]
[1773124732557,0.2139196,70077.0,70053.0,0.03792093]
[1773124732753,0.2139196,70077.0,70050.0,0.00144]
[1773124732754,0.07180241,70075.0,70062.0,0.01702388]
[1773124732954,0.03,70073.0,70064.0,0.01701864]
[1773124733196,0.03,70073.0,70064.0,0.0168713]
[1773124733399,0.03,70069.0,70049.0,0.0713786]
[1773124733547,0.03,70069.0,70050.0,0.07275374]
[1773124733744,0.03,70069.0,70051.0,0.01694497]
[1773124734052,0.03,70069.0,70052.0,0.00144]
[1773124734053,0.03246181,70069.0,70052.0,0.00144]
[1773124734630,0.03246181,70069.0,70051.0,0.01694497]
[1773124734823,0.00215343,70068.0,70040.0,0.05998877]
[1773124735051,0.00215343,70068.0,70044.0,0.07138268]
[1773124735227,0.03,70061.0,70045.0,0.00144]
[1773124735403,0.03,70059.0,70046.0,0.07138166]
[1773124735802,0.03,70059.0,70047.0,0.00144]
[1773124736322,0.03,70059.0,70049.0,0.05436877]
[1773124736699,0.08,70062.0,70051.0,0.01698323]
[1773124736902,0.07136443,70063.0,70051.0,0.01698323]
[1773124737511,0.07136297,70065.0,70052.0,0.07137554]
[1773124737711,0.03,70064.0,70052.0,0.07137554]
[1773124738134,0.03,70064.0,70052.0,0.08851354]
[1773124738540,0.03,70064.0,70052.0,0.07137554]
[1773124738864,0.03,70064.0,70053.0,0.017138]
[1773124739081,0.03,70064.0,70054.0,0.00144]
[1773124739732,0.03,70062.0,70055.0,0.07137249]
[1773124742026,0.10136538,70062.0,70055.0,0.07137249]
[1773124742254,0.10136538,70062.0,70054.0,0.07281332]
[1773124743296,0.10236538,70062.0,70054.0,0.07281332]
[1773124743530,0.10236538,70062.0,70052.0,0.00144]
[1773124743742,0.10136538,70062.0,70052.0,0.00144]
[1773124743875,0.10236538,70062.0,70052.0,0.00144]
[1773124744706,0.10136538,70062.0,70052.0,0.00144]
[1773124745113,0.00022001,70070.0,70056.0,0.0172895]
[1773124745288,0.00022001,70070.0,70060.0,0.0172895]
[1773124745534,0.07180215,70075.0,70063.0,0.03787693]
[1773124745824,0.07180215,70075.0,70064.0,0.0172895]
[1773124745982,0.03,70074.0,70064.0,0.0172895]
[1773124746186,0.03,70074.0,70059.0,0.07136638]
[1773124746384,0.03,70074.0,70058.0,0.00144]
[1773124746598,0.03,70074.0,70058.0,0.03931693]
[1773124746822,0.03,70074.0,70060.0,0.07165827]
[1773124747232,0.03,70074.0,70061.0,0.01728791]
[1773124747451,0.03,70072.0,70062.0,0.07136536]
[1773124747615,0.03,70072.0,70062.0,0.08865327]
[1773124747997,0.03,70072.0,70062.0,0.07280536]
[1773124749827,0.00045001,70075.0,70067.0,0.03689134]
[1773124750858,0.00045001,70075.0,70068.0,0.00144]
[1773124751279,0.03,70074.0,70062.0,0.07136536]
[1773124751505,0.03,70074.0,70063.0,0.00144]
[1773124751650,0.10135377,70074.0,70064.0,0.07136332]
[1773124752204,0.03,70074.0,70065.0,0.00144]
[1773124753675,0.03,70073.0,70066.0,0.07136128]
[1773124754663,0.03022001,70074.0,70067.0,0.03685533]
[1773124754862,0.00045001,70075.0,70068.0,0.03683077]
[1773124755912,0.07134842,70079.0,70068.0,0.03683077]
[1773124756069,0.07134842,70079.0,70069.0,0.09119954]
[1773124756990,0.10134939,70078.0,70070.0,0.07135721]
[1773124757596,0.10134998,70078.0,70070.0,0.07135721]
[1773124757804,0.10134998,70078.0,70069.0,0.16255771]
[1773124758206,0.10134998,70078.0,70069.0,0.12572694]
[1773124758796,0.03,70077.0,70069.0,0.12572694]
[1773124759146,0.03,70077.0,70073.0,0.03678144]
[1773124759307,0.07134844,70079.0,70073.0,0.03678144]
[1773124759924,0.03,70078.0,70073.0,0.03678144]
[1773124760731,0.07278697,70081.0,70073.0,0.03678144]
[1773124760933,0.03,70080.0,70074.0,0.07135314]
[1773124761110,0.03,70080.0,70076.0,0.03675639]
[1773124761450,0.00022001,70084.0,70076.0,0.03675639]
[1773124761451,0.00022001,70084.0,70076.0,0.03819639]
[1773124762016,0.001,70080.0,70076.0,0.03819639]
[1773124762218,0.00022001,70084.0,70076.0,0.03819639]
[1773124763368,0.03022001,70084.0,70077.0,0.07135008]
[1773124764229,0.00022001,70084.0,70078.0,0.00144]
[1773124765395,0.00022001,70084.0,70079.0,0.10821576]
[1773124765800,0.00022001,70084.0,70079.0,0.07134805]
[1773124765958,0.13597902,70084.0,70070.0,0.12567097]
[1773124766146,0.10156354,70084.0,70071.0,0.00144]
[1773124766344,0.10156354,70084.0,70070.0,0.12567097]
[1773124766345,0.03,70082.0,70070.0,0.12567097]
[1773124766544,0.03,70082.0,70071.0,0.00144]
[1773124766745,0.03,70082.0,70072.0,0.03447775]
[1773124766991,0.03,70082.0,70073.0,0.0368927]
[1773124767296,0.03,70083.0,70073.0,0.0368927]
[1773124767498,0.03,70081.0,70073.0,0.0368927]
[1773124768668,0.03,70081.0,70073.0,0.10824633]
[1773124768864,0.03,70081.0,70073.0,0.10924633]
[1773124769405,0.03,70081.0,70073.0,0.10824633]
[1773124769609,0.10134651,70081.0,70073.0,0.10824633]
[1773124769965,0.10134651,70081.0,70073.0,0.10968633]
[1773124770564,0.10134651,70081.0,70072.0,0.0727945]
[1773124770805,0.10134651,70081.0,70073.0,0.001]
[1773124771166,0.10134651,70081.0,70072.0,0.0727945]
[1773124772986,0.10134651,70081.0,70072.0,0.11190901]
[1773124773408,0.10134651,70081.0,70072.0,0.0727945]
[1773124773613,0.10134651,70081.0,70072.0,0.11190901]
[1773124774632,0.10134651,70081.0,70073.0,0.00144]
[1773124775536,0.00022001,70086.0,70075.0,0.03755709]
[1773124775684,0.03,70085.0,70076.0,0.12316627]
[1773124776316,0.03,70085.0,70076.0,0.05431376]
[1773124776518,0.03,70085.0,70076.0,0.12316627]
[1773124776735,0.00022001,70086.0,70076.0,0.12316627]
[1773124776950,0.03403853,70084.0,70073.0,0.00144]
[1773124777146,0.03,70083.0,70070.0,0.12587049]
[1773124777361,0.03,70083.0,70071.0,0.00144]
[1773124777880,0.03,70081.0,70072.0,0.00144]
[1773124778253,0.03,70081.0,70070.0,0.12587049]
[1773124778453,0.03,70081.0,70071.0,0.00144]
[1773124778841,0.03,70081.0,70072.0,0.00144]
[1773124779857,0.03,70079.0,70072.0,0.07279464]
[1773124780548,0.03,70079.0,70064.0,0.07136332]
[1773124780967,0.03,70079.0,70069.0,0.05431376]
[1773124784401,0.03,70077.0,70069.0,0.05431376]
[1773124784605,0.03,70075.0,70062.0,0.07156532]
[1773124785267,0.03,70075.0,70062.0,0.0002]
[1773124785422,0.03,70075.0,70062.0,0.07156507]
[1773124786264,0.03,70075.0,70062.0,0.07300507]
[1773124787914,0.03,70073.0,70062.0,0.07300507]
[1773124788766,0.03,70073.0,70062.0,0.00164]
[1773124788975,0.03,70073.0,70062.0,0.0002]
[1773124789188,0.03,70073.0,70062.0,0.07156535]
[1773124789386,0.03,70073.0,70062.0,0.0002]
[1773124789843,0.03,70071.0,70062.0,0.07156516]
[1773124790367,0.03,70071.0,70062.0,0.14041767]
[1773124791980,0.03,70069.0,70062.0,0.14041767]
[1773124792289,0.03,70069.0,70062.0,0.00144]
[1773124793229,0.03,70069.0,70061.0,0.00144]
[1773124793593,0.03,70069.0,70060.0,0.12568054]
[1773124793842,0.03,70069.0,70061.0,0.00144]
[1773124794254,0.03,70069.0,70062.0,0.07136536]
[1773124795653,0.07135304,70075.0,70062.0,0.07136536]
[1773124795654,0.0301426,70084.0,70062.0,0.07136536]
[1773124795852,0.0301426,70084.0,70071.0,0.07752581]
[1773124796150,0.0301426,70084.0,70071.0,0.07896581]
[1773124796776,0.10155801,70089.0,70077.0,0.03551944]
[1773124796985,0.0001272,70091.0,70080.0,0.03551944]
[1773124797155,0.0001272,70091.0,70081.0,0.07752581]
[1773124797616,0.0001272,70091.0,70082.0,0.07134499]
[1773124797920,0.0001272,70098.0,70082.0,0.07134499]
[1773124797921,0.11390219,70114.0,70084.0,0.04001895]
[1773124798064,0.21236151,70125.0,70104.0,0.05431376]
[1773124798065,0.00144,70120.0,70104.0,0.05431376]
[1773124798264,0.00023,70125.0,70111.0,0.07752581]
[1773124798265,1e-08,70125.0,70111.0,0.07752581]
[1773124798493,1e-08,70125.0,70116.0,0.07752581]
[1773124798664,1e-08,70125.0,70116.0,0.07896581]
[1773124799163,0.01719063,70131.0,70116.0,0.07896581]
[1773124799366,0.00144,70140.0,70121.0,0.07752581]
[1773124799574,0.07128701,70139.0,70126.0,0.07130023]
[1773124799772,0.07128701,70139.0,70126.0,0.14882604]
[1773124799973,0.07128701,70139.0,70122.0,0.00144]
[1773124799974,0.03634659,70138.0,70113.0,0.07131345]
[1773124800174,0.03634659,70138.0,70114.0,0.07896581]
[1773124800380,0.03,70133.0,70115.0,0.00144]
[1773124800601,0.07128701,70139.0,70115.0,0.00144]
[1773124800602,0.03,70129.0,70115.0,0.00144]
[1773124800776,0.03,70129.0,70114.0,0.07752581]
[1773124801001,0.03,70129.0,70115.0,0.00144]
[1773124801379,0.03,70129.0,70115.0,0.07896581]
[1773124801788,0.03,70123.0,70107.0,0.00144]
[1773124801992,0.03,70117.0,70100.0,0.00023]
[1773124802190,0.03634659,70112.0,70095.0,0.07752581]
[1773124802390,0.06634659,70109.0,70095.0,0.07752581]
[1773124802619,0.03,70107.0,70095.0,0.07133153]
[1773124802821,0.03144,70107.0,70094.0,0.00144]
[1773124803023,0.03144,70107.0,70097.0,0.14885553]
[1773124803447,0.03144,70107.0,70097.0,0.07752581]
[1773124803655,0.03,70106.0,70097.0,0.07752581]
[1773124804474,0.03,70104.0,70097.0,0.07752581]
[1773124805371,0.03,70104.0,70095.0,0.00144]
[1773124806129,0.03,70104.0,70092.0,0.1100975]
[1773124806359,0.03,70104.0,70095.0,0.00144]
[1773124806561,0.03,70102.0,70095.0,0.00144]
[1773124806762,0.03,70102.0,70094.0,0.07133245]
[1773124806763,0.03,70102.0,70096.0,0.07695052]
[1773124807506,0.03,70102.0,70096.0,0.00562]
[1773124807743,0.03,70101.0,70096.0,0.00562]
[1773124807949,0.03,70101.0,70094.0,0.00144]
[1773124808173,0.07132288,70104.0,70084.0,0.00144]
[1773124808174,0.03,70097.0,70084.0,0.00144]
[1773124808380,0.03,70091.0,70075.0,0.00167]
[1773124808584,0.03,70085.0,70075.0,1e-08]
[1773124808786,0.03,70083.0,70075.0,1e-08]
[1773124808901,0.03,70081.0,70071.0,0.0003137]
[1773124809111,0.03,70079.0,70068.0,0.00706]
[1773124810179,0.03,70087.0,70071.0,0.0387629]
[1773124810384,0.03,70087.0,70075.0,0.0387629]
[1773124810586,0.03,70087.0,70069.0,0.16414253]
[1773124810587,0.03,70087.0,70079.0,0.0387629]
[1773124810786,0.03,70087.0,70079.0,0.0402029]
[1773124811281,0.03,70088.0,70079.0,0.0402029]
[1773124812016,0.00022001,70087.0,70079.0,0.0402029]
[1773124812618,0.00022001,70094.0,70080.0,0.07134703]
[1773124812850,0.07155309,70094.0,70081.0,0.0387629]
[1773124814350,0.07155309,70094.0,70077.0,0.07134703]
[1773124814351,0.03914047,70090.0,70077.0,0.07134946]
[1773124814550,0.03,70089.0,70080.0,0.00144]
[1773124814766,0.03,70087.0,70080.0,0.00144]
[1773124814991,0.03,70087.0,70080.0,0.1115496]
[1773124815435,0.03,70087.0,70080.0,0.1101096]
[1773124815652,0.03,70087.0,70081.0,0.0387629]
[1773124815866,0.03,70088.0,70081.0,0.0387629]
[1773124816301,0.07155309,70094.0,70081.0,0.0387629]
[1773124816302,0.00022001,70094.0,70081.0,0.0387629]
[1773124816485,0.00144,70093.0,70081.0,0.0387629]
[1773124816697,0.07132789,70099.0,70083.0,0.03762484]
[1773124816904,0.03,70099.0,70086.0,0.0387629]
[1773124817134,0.03,70099.0,70087.0,0.0387629]
[1773124818682,0.03,70098.0,70089.0,0.0387629]
[1773124818880,0.07275999,70107.0,70091.0,0.0387629]
[1773124819119,0.07275999,70107.0,70093.0,0.0387629]
[1773124819715,0.03,70105.0,70087.0,0.0002]
[1773124819867,0.03,70101.0,70087.0,0.0002]
[1773124820068,0.06914047,70099.0,70087.0,0.07153968]
[1773124820297,0.03,70095.0,70087.0,0.07153968]
[1773124820623,0.05,70096.0,70087.0,0.07153968]
[1773124820822,0.07133176,70095.0,70087.0,0.0002]
[1773124821408,0.07133176,70095.0,70087.0,0.07153943]
[1773124822055,0.07133176,70095.0,70087.0,0.0002]
[1773124822998,0.03,70097.0,70087.0,0.0002]
[1773124823399,0.03,70097.0,70088.0,0.0387629]
[1773124824162,0.03,70097.0,70087.0,0.07153926]
[1773124824511,0.07132909,70098.0,70081.0,0.00144]
[1773124824512,0.03,70095.0,70081.0,0.00144]
[1773124824722,0.03,70091.0,70081.0,0.00144]
[1773124824921,0.10133597,70091.0,70082.0,0.07134499]
[1773124825906,0.03,70099.0,70088.0,0.0387629]
[1773124826880,0.03,70098.0,70089.0,0.07133787]
[1773124829054,0.03,70096.0,70075.0,0.0389929]
[1773124829229,0.03,70090.0,70079.0,0.071548]
[1773124829551,0.07132949,70098.0,70079.0,0.071548]
[1773124829552,0.03,70088.0,70079.0,0.071548]
[1773124829757,0.03,70084.0,70075.0,0.00023]
[1773124830055,0.03,70084.0,70075.0,0.07158182]
[1773124831222,0.03,70082.0,70075.0,0.00023]
[1773124832025,0.07134397,70083.0,70072.0,0.00164]
[1773124832026,0.03,70080.0,70072.0,0.0002]
[1773124832223,0.03,70078.0,70072.0,0.0002]
[1773124832773,0.06914047,70078.0,70069.0,0.07135746]
[1773124833162,0.06914047,70078.0,70071.0,0.0002]
[1773124833408,0.1404899,70078.0,70071.0,0.0002]
[1773124834209,0.03,70078.0,70072.0,0.07135517]
[1773124834498,0.03,70077.0,70071.0,0.07155582]
[1773124834682,0.03,70077.0,70071.0,0.0002]
[1773124835220,0.03,70077.0,70071.0,0.07155574]
[1773124835554,0.03,70076.0,70071.0,0.0002]
[1773124838212,0.03,70076.0,70068.0,0.00562]
[1773124838213,0.04445557,70075.0,70068.0,0.00562]
[1773124838377,0.03,70074.0,70068.0,0.00562]
[1773124839275,0.03,70073.0,70068.0,0.00562]
[1773124840124,0.03,70073.0,70071.0,0.0002]
[1773124840354,0.03,70074.0,70071.0,0.0002]
[1773124840541,0.03,70074.0,70065.0,0.00144]
[1773124840542,0.03,70072.0,70063.0,0.0002]
[1773124840722,0.03,70072.0,70056.0,0.0452212]
[1773124840723,0.03,70070.0,70058.0,0.07136943]
[1773124840924,0.07445557,70070.0,70058.0,0.07136943]
[1773124841124,0.07445557,70070.0,70058.0,0.11013233]
[1773124841334,0.07445557,70070.0,70056.0,0.0002]
[1773124841335,0.04445557,70069.0,70056.0,0.0002]
[1773124841534,0.07135415,70073.0,70052.0,0.00144]
[1773124841535,0.04445557,70065.0,70052.0,0.00144]
[1773124841719,0.03,70062.0,70050.0,0.07160728]
[1773124841917,0.00144,70061.0,70050.0,0.0716074]
[1773124842105,0.00144,70061.0,70058.0,0.0002]
[1773124842307,0.03,70062.0,70059.0,0.0387629]
[1773124842861,0.03,70061.0,70059.0,0.0387629]
[1773124843055,0.03,70061.0,70058.0,0.0002]
[1773124843420,0.03,70061.0,70055.0,0.0387629]
[1773124843808,0.03,70062.0,70055.0,0.0387629]
[1773124844029,0.07136083,70067.0,70055.0,0.0387629]
[1773124844235,0.07136083,70067.0,70056.0,0.0387629]
[1773124844675,0.04445557,70066.0,70056.0,0.0387629]
[1773124845177,0.03,70065.0,70056.0,0.0387629]
[1773124845885,0.03,70064.0,70056.0,0.0387629]
[1773124846470,0.03,70064.0,70059.0,0.0387629]
[1773124846869,0.00144,70067.0,70059.0,0.0387629]
[1773124847249,0.03,70065.0,70059.0,0.0387629]
[1773124847458,0.00144,70071.0,70060.0,0.00144]
[1773124847647,0.00144,70073.0,70061.0,0.0387629]
[1773124848124,0.00144,70075.0,70061.0,0.0387629]
[1773124848347,0.03144,70075.0,70061.0,0.0387629]
[1773124848568,0.03,70073.0,70063.0,0.0387629]
[1773124851871,0.03,70071.0,70060.0,0.00144]
[1773124852071,0.07135517,70072.0,70056.0,0.07301139]
[1773124852072,0.04612222,70066.0,70056.0,0.07301139]
[1773124852247,0.03,70065.0,70056.0,0.07301097]
[1773124852599,0.03,70065.0,70057.0,0.0387629]
[1773124853231,0.03,70064.0,70057.0,0.0387629]
[1773124854007,0.03,70064.0,70057.0,0.1101327]
[1773124854589,0.0713609,70067.0,70058.0,0.0387629]
[1773124855633,0.03,70066.0,70058.0,0.0389629]
[1773124856125,0.10136176,70066.0,70058.0,0.1103317]
[1773124857165,1.79e-06,70069.0,70058.0,0.1103317]
[1773124857397,0.07156909,70078.0,70059.0,0.16291034]
[1773124857577,0.07157138,70076.0,70059.0,0.0424797]
[1773124857779,0.1176936,70076.0,70061.0,0.0424797]
[1773124858149,0.03,70075.0,70061.0,0.0424797]
[1773124858985,0.03,70075.0,70062.0,0.0424797]
[1773124859343,0.03,70074.0,70064.0,0.0424797]
[1773124859528,0.00022001,70076.0,70064.0,0.0424797]
[1773124859734,0.00022001,70076.0,70065.0,0.0424797]
[1773124859930,0.00022001,70076.0,70067.0,0.0424797]
[1773124861881,0.00022001,70076.0,70068.0,0.07135925]
[1773124862079,0.00022001,70076.0,70068.0,0.11383895]